[Event "Championnat du monde jeunes U12"]
[Date "2024.11.26"]
[White "Kim, Minwoo"]
[Black "Anuzis, Finas"]
[WhiteElo "1501"]
[BlackElo "1614"]
[Round "11.62"]
[Result "1-0"]
[TimeControl "5400+30"]

1. e4 {[%clk 1:30:56]} 1... e6 {[%clk 1:30:42]} 2. d4 {[%clk 1:31:13]} 2... d5
{[%clk 1:31:00]} 3. Bd3 {[%clk 1:29:44]} 3... dxe4 4. Bxe4 {[%clk 1:29:57]} 4...
Nf6 {[%clk 1:30:19]} 5. Bf3 {[%clk 1:30:20]} 5... Be7 {[%clk 1:30:11]} 6. Nc3
{[%clk 1:26:53]} 6... O-O {[%clk 1:29:02]} 7. Nge2 {[%clk 1:23:36]} 7... Nbd7
{[%clk 1:25:21]} 8. Be3 {[%clk 1:19:54]} 8... c6 {[%clk 1:14:57]} 9. Qd2 {[%clk
1:12:42]} 9... Nd5 {[%clk 1:09:50]} 10. Nxd5 {[%clk 1:07:41]} 10... cxd5 {[%clk
1:08:58]} 11. Nc3 {[%clk 1:03:25]} 11... Nb6 {[%clk 0:51:20]} 12. Be2 {[%clk
0:59:34]} 12... Bd7 {[%clk 0:49:58]} 13. a3 {[%clk 0:54:57]} 13... Nc8 {[%clk
0:46:30]} 14. O-O-O {[%clk 0:54:52]} 14... Nd6 {[%clk 0:45:59]} 15. g4 {[%clk
0:50:36]} 15... Rc8 {[%clk 0:43:49]} 16. f3 {[%clk 0:48:23]} 16... f6 {[%clk
0:38:09]} 17. h4 {[%clk 0:46:57]} 17... Nc4 {[%clk 0:37:22]} 18. Bxc4 {[%clk
0:45:58]} 18... Rxc4 {[%clk 0:35:37]} 19. g5 {[%clk 0:39:08]} 19... fxg5 {[%clk
0:32:16]} 20. hxg5 {[%clk 0:37:28]} 20... Rxf3 {[%clk 0:30:20]} 21. Qh2 {[%clk
0:37:12]} 21... Bf8 {[%clk 0:20:57]} 22. Qxh7+ {[%clk 0:37:12]} 22... Kf7 {[%clk
0:21:18]} 23. Qh5+ {[%clk 0:36:43]} 23... Ke7 {[%clk 0:21:06]} 24. Qxf3 {[%clk
0:36:56]} 24... Kd6 25. Bf4+ {[%clk 0:33:51]} 25... Ke7 {[%clk 0:19:59]} 26. Be5
{[%clk 0:33:29]} 26... Ke8 {[%clk 0:18:16]} 27. Qh5+ {[%clk 0:32:51]} 27... Ke7
{[%clk 0:18:10]} 28. Rhf1 {[%clk 0:32:46]} 28... Be8 {[%clk 0:17:43]} 29. Qh8
{[%clk 0:31:35]} 29... Bg6 {[%clk 0:16:34]} 30. Bxg7 {[%clk 0:31:31]} 30... Bxg7
{[%clk 0:16:49]} 31. Qxg7+ {[%clk 0:31:57]} 31... Kd6 {[%clk 0:16:34]} 32. Qxg6
{[%clk 0:31:42]} 32... Qa5 {[%clk 0:13:22]} 33. Rfe1 {[%clk 0:31:01]} 33... Rxc3
{[%clk 0:13:36]} 34. Rxe6+ {[%clk 0:30:44]} 34... Kc7 {[%clk 0:13:50]} 35. Qf7+
{[%clk 0:29:31]} 35... Kb8 {[%clk 0:14:03]} 36. Re8+ {[%clk 0:29:51]} 36... Rc8
{[%clk 0:14:29]} 37. Qf4+ {[%clk 0:30:12]} 37... Qc7 {[%clk 0:14:38]} 38. Rxc8+
{[%clk 0:30:37]} 38... Kxc8 {[%clk 0:14:59]} 39. Qxc7+ {[%clk 0:31:03]} 39...
Kxc7 {[%clk 0:15:23]} 40. g6 {[%clk 0:31:29]} 40... Kb6 {[%clk 0:15:48]} 41. g7
{[%clk 0:31:54]} 41... Ka6 {[%clk 0:16:01]} 42. g8=Q {[%clk 0:32:18]} 42... b6
{[%clk 0:16:12]} 43. Qc8+ {[%clk 0:32:42]} 43... Ka5 44. b4+ {[%clk 0:33:04]}
44... Kb5 {[%clk 0:16:57]} 45. Qd7+ {[%clk 0:33:09]} 45... Ka6 {[%clk 0:17:02]}
46. a4 {[%clk 0:33:22]} 46... b5 {[%clk 0:17:20]} 47. Qxb5# {[%clk 0:33:18]} 1-0

[Variant "Standard"]
[Site "Europe Echecs"]